fUST/lending_fUST_20251008
["ID","MTS","AMOUNT","RATE_DAILY","PERIOD"]
[389800307,1759853447466,-1665.75923199,0.00023857,2]
[389800309,1759853447476,-1000.76108039,0.00023857,2]
[389800311,1759853447487,-2000.0,0.00023857,2]
[389800313,1759853447496,-2000.0,0.00023857,2]
[389800315,1759853447505,-2000.0,0.00023857,2]
[389800317,1759853447516,-2000.0,0.00023857,2]
[389800319,1759853447526,-500.0,0.00023888,2]
[389800320,1759853447535,-1429.49516451,0.00023898,2]
[389800323,1759853447545,-699.823,0.00023973,5]
[389800325,1759853447554,-513.94319584,0.00023976,2]
[389800327,1759853447564,-163.466338,0.0002399,7]
[389800329,1759853447573,-163.466338,0.0002399,7]
[389800331,1759853447583,-163.466338,0.0002399,7]
[389800333,1759853447592,-163.466338,0.0002399,7]
[389800335,1759853447603,-151.0,0.0002399,7]
[389800337,1759853447613,-151.0,0.0002399,7]
[389800339,1759853447623,-513.669833,0.0002399,7]
[389800341,1759853447632,-513.669833,0.0002399,7]
[389800343,1759853447642,-513.669833,0.0002399,7]
[389800345,1759853447651,-256.0,0.0002399,7]
[389800347,1759853447660,-513.669833,0.0002399,7]
[389800349,1759853447669,-256.0,0.0002399,7]
[389800351,1759853447678,-256.0,0.0002399,7]
[389800353,1759853447688,-256.0,0.0002399,7]
[389800355,1759853447698,-151.0,0.0002399,7]
[389800357,1759853447707,-151.0,0.0002399,7]
[389800359,1759853447717,-151.0,0.0002399,7]
[389800361,1759853447726,-162.116681,0.0002399,7]
[389800363,1759853447737,-285.141977,0.0002399,7]
[389800365,1759853447747,-162.116681,0.0002399,7]
[389800367,1759853447757,-285.141977,0.0002399,7]
[389800369,1759853447766,-162.116681,0.0002399,7]
[389800371,1759853447776,-285.141977,0.0002399,7]
[389800373,1759853447785,-157.259188,0.0002399,7]
[389800375,1759853447795,-162.116681,0.0002399,7]
[389800377,1759853447804,-151.0,0.0002399,7]
[389800379,1759853447813,-285.141977,0.0002399,7]
[389800381,1759853447823,-157.259188,0.0002399,7]
[389800383,1759853447833,-157.259188,0.0002399,7]
[389800385,1759853447843,-157.259188,0.0002399,7]
[389800387,1759853447853,-151.645081,0.0002399,7]
[389800389,1759853447862,-151.0,0.0002399,7]
[389800391,1759853447871,-151.0,0.0002399,7]
[389800392,1759853447880,-151.0,0.0002399,7]
[389800394,1759853447889,-151.0,0.0002399,7]
[389800396,1759853447898,-151.0,0.0002399,7]
[389800398,1759853447908,-151.0,0.0002399,7]
[389800400,1759853447917,-151.0,0.0002399,7]
[389800402,1759853447927,-151.0,0.0002399,7]
[389800404,1759853447936,-1913.681309,0.0002399,7]
[389800406,1759853447946,-1913.681309,0.0002399,7]
[389800408,1759853447955,-151.0,0.0002399,7]
[389800410,1759853447964,-1913.681309,0.0002399,7]
[389800412,1759853447973,-151.0,0.0002399,7]
[389800414,1759853447983,-1913.681309,0.0002399,7]
[389800416,1759853447994,-151.0,0.0002399,7]
[389800418,1759853448004,-151.0,0.0002399,7]
[389800420,1759853448014,-431.694621,0.0002399,7]
[389800422,1759853448023,-151.0,0.0002399,7]
[389800423,1759853448033,-431.694621,0.0002399,7]
[389800425,1759853448043,-686.875483,0.0002399,7]
[389800427,1759853448053,-151.0,0.0002399,7]
[389800429,1759853448063,-151.0,0.0002399,7]
[389800431,1759853448072,-431.694621,0.0002399,7]
[389800433,1759853448081,-686.875483,0.0002399,7]
[389800435,1759853448090,-431.694621,0.0002399,7]
[389800437,1759853448099,-1069.247547,0.0002399,7]
[389800439,1759853448111,-151.0,0.0002399,7]
[389800441,1759853448121,-686.875483,0.0002399,7]
[389800443,1759853448131,-151.0,0.0002399,7]
[389800445,1759853448143,-151.0,0.0002399,7]
[389800447,1759853448153,-686.875483,0.0002399,7]
[389800449,1759853448164,-151.0,0.0002399,7]
[389800451,1759853448175,-151.0,0.0002399,7]
[389800453,1759853448184,-305.776615,0.0002399,7]
[389800455,1759853448194,-1069.247547,0.0002399,7]
[389800457,1759853448203,-151.0,0.0002399,7]
[389800459,1759853448214,-151.0,0.0002399,7]
[389800461,1759853448224,-1069.247547,0.0002399,7]
[389800463,1759853448233,-1069.247547,0.0002399,7]
[389800465,1759853448243,-305.776615,0.0002399,7]
[389800467,1759853448254,-305.776615,0.0002399,7]
[389800469,1759853448263,-305.776615,0.0002399,7]
[389800471,1759853448272,-160.337621,0.0002399,7]
[389800473,1759853448281,-151.0,0.0002399,7]
[389800475,1759853448291,-151.0,0.0002399,7]
[389800477,1759853448300,-151.0,0.0002399,7]
[389800479,1759853448310,-299.547968,0.0002399,7]
[389800481,1759853448320,-151.0,0.0002399,7]
[389800483,1759853448330,-151.0,0.0002399,7]
[389800485,1759853448340,-151.0,0.0002399,7]
[389800487,1759853448350,-252.263206,0.0002399,7]
[389800489,1759853448359,-151.0,0.0002399,7]
[389800491,1759853448369,-368.524893,0.0002399,7]
[389800493,1759853448378,-151.0,0.0002399,7]
[389800495,1759853448388,-368.524893,0.0002399,7]
[389800497,1759853448398,-368.524893,0.0002399,7]
[389800499,1759853448408,-151.0,0.0002399,7]
[389800501,1759853448418,-1347.875389,0.0002399,7]
[389800503,1759853448432,-368.524893,0.0002399,7]
[389800505,1759853448442,-151.0,0.0002399,7]
[389800507,1759853448452,-1347.875389,0.0002399,7]
[389800509,1759853448462,-394.730659,0.0002399,7]
[389800511,1759853448473,-1347.875389,0.0002399,7]
[389800513,1759853448483,-394.730659,0.0002399,7]
[389800515,1759853448495,-1347.875389,0.0002399,7]
[389800517,1759853448508,-394.730659,0.0002399,7]
[389800519,1759853448520,-394.730659,0.0002399,7]
[389800521,1759853448529,-518.339939,0.0002399,7]
[389800523,1759853448539,-518.339939,0.0002399,7]
[389800525,1759853448548,-518.339939,0.0002399,7]
[389800527,1759853448557,-596.654506,0.0002399,7]
[389800529,1759853448567,-596.654506,0.0002399,7]
[389800531,1759853448576,-518.339939,0.0002399,7]
[389800533,1759853448585,-596.654506,0.0002399,7]
[389800535,1759853448595,-596.654506,0.0002399,7]
[389800537,1759853448605,-151.0,0.0002399,7]
[389800539,1759853448614,-151.0,0.0002399,7]
[389800541,1759853448624,-151.0,0.0002399,7]
[389800543,1759853448633,-151.0,0.0002399,7]
[389800545,1759853448643,-626.85021712,0.00024,2]
[389800546,1759853448653,-269.0,0.00024,2]
[389800549,1759853448662,-160.0,0.00024,7]
[389800551,1759853448673,-1041.66666667,0.00024,7]
[389800553,1759853448683,-234.20938206,0.00024,7]
[389800555,1759853448692,-1000.0,0.00024,2]
[389800556,1759853448703,-5399.49629818,0.00024,2]
[389800558,1759853448712,-2500.0,0.00024004,2]
[389800560,1759853448724,-1473.0,0.00024023,2]
[389800563,1759853448736,-183.738867,0.00024027,7]
[389800565,1759853448747,-151.0,0.00024027,7]
[389800567,1759853448757,-151.0,0.00024027,7]
[389800569,1759853448767,-800.0,0.00024065,2]
[389800571,1759853448776,-231.8246199,0.00024077,2]
[389800573,1759853448786,-1473.0,0.00024079,2]
[389800575,1759853448796,-200.0,0.000241,2]
[389800576,1759853448806,-1041.66666667,0.000241,7]
[389800579,1759853448816,-234.20938206,0.000241,7]
[389800580,1759853448826,-160.0,0.000241,7]
[389800582,1759853448836,-151.0,0.000241,7]
[389800584,1759853448846,-151.0,0.000241,7]
[389800586,1759853448855,-151.0,0.000241,7]
[389800588,1759853448865,-152.114768,0.000241,7]
[389800590,1759853448875,-452.269899,0.000241,7]
[389800592,1759853448884,-452.269899,0.000241,7]
[389800594,1759853448894,-452.269899,0.000241,7]
[389800596,1759853448904,-452.269899,0.000241,7]
[389800598,1759853448914,-151.0,0.000241,7]
[389800600,1759853448924,-151.0,0.000241,7]
[389800602,1759853448934,-151.0,0.000241,7]
[389800604,1759853448944,-233.417555,0.000241,7]
[389800607,1759853448954,-151.0,0.000241,7]
[389800608,1759853448964,-151.0,0.000241,7]
[389800610,1759853448974,-151.0,0.000241,7]
[389800612,1759853448983,-151.0,0.000241,7]
[389800614,1759853448996,-151.0,0.000241,7]
[389800616,1759853449005,-151.0,0.000241,7]
[389800618,1759853449015,-151.0,0.000241,7]
[389800620,1759853449024,-151.0,0.000241,7]
[389800622,1759853449034,-151.0,0.000241,7]
[389800624,1759853449043,-151.0,0.000241,7]
[389800626,1759853449053,-151.0,0.000241,7]
[389800628,1759853449063,-338.603931,0.000241,7]
[389800630,1759853449074,-338.603931,0.000241,7]
[389800632,1759853449085,-338.603931,0.000241,7]
[389800634,1759853449094,-338.603931,0.000241,7]
[389800636,1759853449103,-151.0,0.000241,7]
[389800638,1759853449114,-151.0,0.000241,7]
[389800640,1759853449124,-298.911972,0.000241,7]
[389800642,1759853449134,-298.911972,0.000241,7]
[389800644,1759853449144,-298.911972,0.000241,7]
[389800646,1759853449154,-298.911972,0.000241,7]
[389800648,1759853449163,-166.37053027,0.00024119,5]
[389800650,1759853449172,-292.02407128,0.00024119,5]
[389800652,1759853449184,-5000.0,0.00024132,2]
[389800654,1759853449194,-1473.0,0.00024145,2]
[389800656,1759853449203,-151.0,0.00024145,7]
[389800658,1759853449213,-10766.59721172,0.00024191,2]
[389800660,1759853449223,-153.0,0.00024192,2]
[389800662,1759853449233,-800.0,0.00024192,2]
[389800664,1759853449246,-980.0,0.00024208,2]
[389800666,1759853449256,-2158.0,0.00024208,2]
[389800668,1759853449266,-630.0,0.00024208,2]
[389800670,1759853449277,-190.0,0.0002421,9]
[389800672,1759853449287,-240.5916,0.00024224,2]
[389800674,1759853449297,-240.5916,0.00024224,2]
[389800676,1759853449308,-151.0,0.00024224,7]
[389800678,1759853449318,-240.5916,0.00024224,2]
[389800680,1759853449328,-151.0,0.00024224,7]
[389800682,1759853449338,-240.5916,0.00024224,2]
[389800684,1759853449348,-151.0,0.00024224,7]
[389800686,1759853449358,-151.0,0.00024224,7]
[389800688,1759853449368,-800.0,0.00024232,2]
[389800690,1759853449378,-3000.0,0.00024233,2]
[389800692,1759853449387,-2000.0,0.00024233,2]
[389800694,1759853449397,-153.151123,0.00024265,3]
[389800696,1759853449408,-1411.95123889,0.00024265,2]
[389800698,1759853449417,-800.0,0.0002429,2]
[389800700,1759853449428,-500.0,0.0002429,2]
[389800702,1759853449442,-168.0,0.00024291,2]
[389800704,1759853449452,-500.0,0.00024291,2]
[389800706,1759853449461,-1473.0,0.00024299,2]
[389800708,1759853449473,-416.236073,0.00024308,7]
[389800710,1759853449483,-416.236073,0.00024308,7]
[389800712,1759853449496,-178.559322,0.00024308,7]
[389800715,1759853449507,-151.0,0.00024308,7]
[389800716,1759853449518,-416.236073,0.00024308,7]
[389800718,1759853449528,-178.559322,0.00024308,7]
[389800720,1759853449538,-416.236073,0.00024308,7]
[389800722,1759853449548,-178.559322,0.00024308,7]
[389800725,1759853449558,-2346.44608376,0.00024308,2]
[389800726,1759853449568,-2500.0,0.00024308,2]
[389800728,1759853449578,-2500.0,0.00024308,2]
[389800731,1759853449588,-2500.0,0.00024308,2]
[389800732,1759853449598,-2500.0,0.00024308,2]
[389800734,1759853449608,-168.172121,0.00024327,7]
[389800736,1759853449618,-168.172121,0.00024327,7]
[389800738,1759853449628,-168.172121,0.00024327,7]
[389800741,1759853449638,-168.172121,0.00024327,7]
[389800743,1759853449648,-151.0,0.00024327,7]
[389800744,1759853449657,-151.0,0.00024327,7]
[389800747,1759853449669,-151.0,0.00024327,7]
[389800749,1759853449679,-151.0,0.00024327,7]
[389800751,1759853449688,-153.151123,0.00024338,7]
[389800753,1759853449698,-1512.451347,0.0002434,5]
[389800755,1759853449707,-1000.0,0.0002436,5]
[389800757,1759853449718,-1000.0,0.0002438,5]
[389800759,1759853449728,-1473.0,0.00024382,2]
[389800761,1759853449738,-800.0,0.00024384,2]
[389800763,1759853449750,-960.0,0.00024394,2]
[389800764,1759853449761,-1491.64712819,0.00024398,2]
[389800766,1759853449771,-2000.0,0.000244,2]
[389800768,1759853449782,-1000.0,0.000244,5]
[389800770,1759853449793,-250.0,0.000244,10]
[389800772,1759853449803,-429.0,0.000244,2]
[389800774,1759853449814,-2048.62600352,0.00024405,2]
[389800776,1759853449825,-2500.0,0.00024405,2]
[389800779,1759853449835,-2622.33894552,0.00024405,2]
[389800780,1759853449846,-2500.0,0.00024405,2]
[389800782,1759853449856,-2500.0,0.00024405,2]
[389800785,1759853449866,-760.47359729,0.00024405,2]
[389800786,1759853449876,-1374.65278337,0.00024405,2]
[389800788,1759853449886,-2500.0,0.00024405,2]
[389800790,1759853449896,-2500.0,0.00024405,2]
[389800793,1759853449905,-2076.74277249,0.00024405,2]
[389800795,1759853449916,-2500.0,0.00024405,2]
[389800796,1759853449926,-1912.39679484,0.00024405,2]
[389800799,1759853449938,-2500.0,0.00024405,2]
[389800801,1759853449948,-1517.87542278,0.00024405,2]
[389800802,1759853449958,-219.3309934,0.00024405,2]
[389800805,1759853449969,-1000.0,0.0002442,5]
[389800807,1759853449985,-151.0,0.00024426,7]
[389800810,1759853450002,-300.096182,0.00024426,7]
[389800812,1759853450013,-151.0,0.00024426,7]
[389800814,1759853450024,-151.0,0.00024426,7]
[389800816,1759853450035,-151.0,0.00024426,7]
[389800818,1759853450046,-1152.0,0.00024437,2]
[389800820,1759853450056,-1000.0,0.0002444,5]
[389800822,1759853450068,-1000.0,0.0002446,5]
[389800823,1759853450079,-106.16891673,0.00024464,2]
[389800867,1759853450713,-399.78430285,0.00024464,2]
[389800869,1759853450724,-331.23136431,0.00024464,2]
[389800953,1759853451546,-178.559322,0.00023,7]
[389800955,1759853451557,-151.0,0.00024308,7]
[389800957,1759853451566,-178.559322,0.00024308,7]
[389800959,1759853451576,-1690.55770112,0.00024464,2]
[389800961,1759853451586,-500.0,0.00024464,2]
[389800963,1759853451596,-151.48361571,0.00024464,2]
[389800965,1759853451605,-151.0,0.00024464,2]
[389800967,1759853451615,-151.0,0.00024464,2]
[389800969,1759853451624,-151.0,0.00024464,2]
[389800971,1759853451634,-151.0,0.00024464,2]
[389800973,1759853451644,-151.0,0.00024464,2]
[389800975,1759853451653,-453.24834512,0.00024464,2]
[389800977,1759853451663,-1451.20422472,0.00024464,2]
[389800979,1759853451674,-359.97616239,0.00024464,2]
[389800981,1759853451685,-234.37128682,0.00024464,2]
[389801117,1759853453115,-3e-08,0.00024464,2]
[389801164,1759853453583,-151.0,0.000221,8]
[389801166,1759853453593,-151.0,0.000225,9]
[389801168,1759853453603,-151.379721,0.00023,7]
[389801169,1759853453614,-217.960279,0.00024464,2]
[389801266,1759853454712,-151.0,0.000202,4]
[389801267,1759853454723,-151.0,0.000207,3]
[389801269,1759853454732,-151.0,0.000211,4]
[389801271,1759853454745,-411.0,0.00021396,2]
[389801273,1759853454756,-151.0,0.000216,3]
[389801274,1759853454767,-151.0,0.00023,7]
[389801276,1759853454778,-151.0,0.00024308,7]
[389801277,1759853454789,-411.0,0.00024396,2]
[389801279,1759853454800,-54.87186312,0.00024464,2]
[389801304,1759853455167,-227.16785788,0.00024464,2]
[389801306,1759853455177,-151.0,0.00024464,2]
[389801308,1759853455187,-151.0,0.00024464,2]
[389801310,1759853455197,-151.0,0.00024464,2]
[389801311,1759853455208,-151.0,0.00024464,2]
[389801313,1759853455219,-151.0,0.00024464,2]
[389801315,1759853455231,-151.0,0.00024464,2]
[389801317,1759853455241,-151.0,0.00024464,2]
[389801319,1759853455253,-151.1184974,0.00024464,2]
[389801321,1759853455264,-151.10009342,0.00024464,2]
[389801322,1759853455274,-231.03233429,0.00024464,2]
[389801324,1759853455285,-151.58759064,0.00024464,2]
[389801326,1759853455295,-151.0,0.00024464,2]
[389801328,1759853455307,-151.0,0.00024464,2]
[389801330,1759853455327,-500.0,0.00024464,2]
[389801332,1759853455340,-500.0,0.00024464,2]
[389801334,1759853455352,-245.60097644,0.00024464,2]
[389801336,1759853455364,-981.42150185,0.00024464,2]
[389801338,1759853455374,-151.0,0.00024464,2]
[389801340,1759853455385,-151.0,0.00024464,2]
[389801342,1759853455396,-151.0,0.00024464,2]
[389801343,1759853455406,-151.0,0.00024464,2]
[389801345,1759853455417,-1202.0,0.00024464,2]
[389801346,1759853455428,-500.0,0.00024464,2]
[389801348,1759853455443,-151.0,0.00024464,2]
[389801350,1759853455453,-151.0,0.00024464,2]
[389801352,1759853455463,-151.0,0.00024464,2]
[389801354,1759853455475,-151.0,0.00024464,2]
[389801355,1759853455486,-151.0,0.00024464,2]
[389801357,1759853455495,-151.0,0.00024464,2]
[389801359,1759853455505,-151.0,0.00024464,2]
[389801361,1759853455516,-800.0,0.0002447,2]
[389801362,1759853455526,-1000.0,0.0002448,5]
[389801364,1759853455536,-477.5372049,0.00024492,2]
[389801366,1759853455545,-178.5050994,0.00024494,2]
[389801367,1759853455556,-5703.5976823,0.00024494,2]
[389801369,1759853455567,-8345.29053028,0.00024499,2]
[389801371,1759853455580,-9541.39214468,0.00024499,2]
[389801373,1759853455593,-21539.81168182,0.00024499,2]
[389804380,1759853611758,200.0,0.00028187,120]
[389804381,1759853612280,-392.32166912,0.00017085,2]
[389804383,1759853656226,-174.76358483,0.00017075,3]
[389804385,1759853686679,-16.42641517,0.00017075,3]
[389804386,1759853686704,-168.05901393,0.00017075,3]
[389804387,1759853692983,1735.608082,0.00017067,2]
[389804388,1759853716726,-294.36967662,0.00017075,3]
[389804389,1759853761222,-111.19130945,0.00017075,3]
[389804390,1759853761246,-73.50178196,0.00017075,3]
[389804391,1759853784201,1707.62323966,0.00017,2]
[389804392,1759853790864,200.0,0.00027495,120]
[389804393,1759853806777,-151.57834697,0.00017075,3]
[389804394,1759853836991,-96.59987107,0.00017075,3]
[389804395,1759853837021,-129.24047851,0.00017075,3]
[389804416,1759853870944,184.4854291,0.00016984,2]
[389804418,1759853881277,-31.59952149,0.00017075,3]
[389804419,1759853881302,-173.43116763,0.00017075,3]
[389804420,1759853911157,200.0,0.0002793,120]
[389804421,1759853926845,-257.86881925,0.00017075,3]
[389804422,1759853956335,-51.25001312,0.00017075,3]
[389804423,1759853956362,-102.49369406,0.00017075,3]
[389804424,1759853977786,179.36069948,0.00016984,2]
[389804426,1759853986837,-204.63690236,0.00017075,3]
[389804427,1759854016250,-104.60940358,0.00017075,3]
[389804428,1759854016281,-63.39059642,0.00017083,2]
[389804429,1759854053524,151.0,0.000162,2]
[389804430,1759854053869,151.0,0.000149,2]
[389804431,1759854054210,151.0,0.000136,2]
[389804432,1759854054567,151.0,0.000123,2]
[389804433,1759854054996,151.0,0.00011,2]
[389804434,1759854061601,-226.5556443,0.00017083,2]
[389804435,1759854091225,-160.05375928,0.00017083,2]
[389804436,1759854091254,-75.45826792,0.00017083,2]
[389804439,1759854121833,-306.08372423,0.00017083,2]
[389804440,1759854121861,-13.951299,0.00017083,2]
[389804441,1759854128523,1708.29551778,0.00017,2]
[389804442,1759854150877,200.0,0.00023827,120]
[389804443,1759854153344,172.0,0.00022444,120]
[389804444,1759854154664,172.0,0.00023567,120]
[389804445,1759854156530,172.0,0.00024745,120]
[389804446,1759854157438,172.0,0.00025982,120]
[389804447,1759854158720,172.0,0.00027281,120]
[389804448,1759854160075,172.0,0.00028645,120]
[389804449,1759854166343,-159.46099019,0.00017083,2]
[389804450,1759854196623,-286.20369376,0.00017083,2]
[389804451,1759854202267,176.45293378,0.00016985,2]
[389804452,1759854226639,-94.28458863,0.00017083,2]
[389804453,1759854226671,-361.271624,0.00017083,2]
[389804454,1759854257263,-177.06,0.00017075,3]
[389804455,1759854257288,-0.99105161,0.00017075,3]
[389804456,1759854286778,-174.73764507,0.00017075,3]
[389804460,1759854331735,-26.14130332,0.00017075,3]
[389804461,1759854331764,-219.84910342,0.00017075,3]
[389804463,1759854342898,271.67518099,0.00017067,2]
[389804465,1759854361741,-268.79227654,0.00017075,3]
[389804466,1759854366807,281.17350901,0.00017067,2]
[389804467,1759854407249,-116.97862004,0.00017075,3]
[389804468,1759854407272,-51.02137996,0.00017075,3]
[389804474,1759854436216,-197.41388266,0.00017075,3]
[389804477,1759854446081,163.67228741,0.00016985,2]
[389804482,1759854466746,-266.52506399,0.00017075,3]
[389804483,1759854469944,1649.66123888,0.00016985,2]
[389804489,1759854496234,-50.58967339,0.00017075,3]
[389804490,1759854496259,-173.70887813,0.00017082,2]
[389804493,1759854510848,200.0,0.0002482,120]
[389804494,1759854519967,150.99999986,0.0002,120]
[389804495,1759854524665,1187.00188191,0.0001,2]
[389804496,1759854524693,10000.01,0.0001,2]
[389804497,1759854524723,10000.01,0.0001,2]
[389804498,1759854524751,10000.01,0.0001,2]
[389804499,1759854524781,10000.01,0.0001,2]
[389804500,1759854524809,1300.38327029,0.0001,2]
[389804501,1759854525063,1814.13430851,0.0001,2]
[389804503,1759854526156,-260.71,0.00017075,3]
[389804504,1759854526192,-782.14,0.00017075,3]
[389804505,1759854526227,-1026.29112187,0.00017082,2]
[389804506,1759854526263,-1200.0,0.00017082,2]
[389804507,1759854526298,-300.0,0.00017082,2]
[389804508,1759854526332,-300.0,0.00017083,2]
[389804509,1759854526366,-300.0,0.00017083,2]
[389804510,1759854526401,-300.0,0.00017083,2]
[389804511,1759854526431,-214.83214905,0.00017084,2]
[389804512,1759854526460,-280.6431588,0.00017084,2]
[389804513,1759854527219,-70.77714056,0.00017084,2]
[389804514,1759854527241,-114.22285944,0.00017084,2]
[389804515,1759854529106,-385.77714056,0.00017084,2]
[389804516,1759854529137,-567.09429717,0.00017084,2]
[389804517,1759854529165,-506.7558081,0.00017084,2]
[389804520,1759854542933,300.0,0.00017084,2]
[389804549,1759854556617,-315.60627771,0.00017085,2]
[389804578,1759854587354,-275.8155239,0.00017085,2]
[389804580,1759854597259,620.1,0.00017075,3]
[389804585,1759854601406,300.0,0.00017084,2]
[389804587,1759854602081,300.0,0.00017084,2]
[389804588,1759854602403,300.0,0.00017084,2]
[389804589,1759854602440,300.0,0.00017084,2]
[389804591,1759854617005,-151.0,0.00017085,2]
[389804592,1759854631041,200.0,0.00027636,120]
[389804637,1759854632075,-2380.53516283,0.00017085,2]
[389804638,1759854632136,-1180.44351992,0.00017085,2]
[389804639,1759854632148,-60886.35008194,0.00017085,2]
[389804762,1759854637974,-998.68708,0.00017085,2]
[389804764,1759854637986,-303419.24068458,0.00017085,2]
[389804766,1759854637995,-200.0,0.00017085,2]
[389804768,1759854638005,-151.0,0.000171,2]
[389804770,1759854638015,-151.0,0.000171,2]
[389804771,1759854638025,-300.0,0.00017426,2]
[389804773,1759854638035,-300.0,0.00017426,2]
[389804775,1759854638046,-300.0,0.00017426,2]
[389804777,1759854638056,-300.0,0.00017426,2]
[389804779,1759854638066,-300.0,0.00017426,2]
[389804781,1759854638076,-300.0,0.00017426,2]
[389804782,1759854638086,-300.0,0.00017426,2]
[389804784,1759854638096,-300.0,0.00017426,2]
[389804785,1759854638106,-300.0,0.00017426,2]
[389804787,1759854638116,-300.0,0.00017426,2]
[389804788,1759854638126,-300.0,0.00017426,2]
[389804789,1759854638136,-300.0,0.00017426,2]
[389804790,1759854638147,-300.0,0.00017426,2]
[389804791,1759854638157,-300.0,0.00017426,2]
[389804793,1759854638167,-300.0,0.00017426,2]
[389804794,1759854638177,-600.0,0.00017426,2]
[389804795,1759854638187,-50000.0,0.00017426,2]
[389804796,1759854638196,-151.0,0.000175,2]
[389804797,1759854638206,-609.29062874,0.00017583,2]
[389804798,1759854638218,-500.0,0.00017625,2]
[389804799,1759854638228,-503.31128271,0.00017625,2]
[389804800,1759854638238,-500.50856192,0.00017625,2]
[389804801,1759854638248,-500.0,0.00017625,2]
[389804802,1759854638257,-500.0,0.00017625,2]
[389804803,1759854638267,-501.49133936,0.00017625,2]
[389804804,1759854638277,-500.0,0.00017625,2]
[389804805,1759854638287,-502.85302733,0.00017625,2]
[389804806,1759854638298,-500.0,0.00017625,2]
[389804807,1759854638308,-500.0,0.00017625,2]
[389804808,1759854638318,-500.0,0.00017625,2]
[389804809,1759854638327,-500.0,0.00017625,2]
[389804810,1759854638337,-500.0,0.00017625,2]
[389804811,1759854638346,-500.19781392,0.00017625,2]
[389804812,1759854638355,-500.0,0.00017625,2]
[389804813,1759854638365,-151.0,0.000177,2]
[389804814,1759854638375,-29069.57888527,0.00017763,2]
[389804815,1759854638385,-151.0,0.000178,2]
[389804816,1759854638399,-100000.0,0.0001799,2]
[389804817,1759854638409,-7353.46071711,0.00018,2]
[389804818,1759854638419,-3226.48878925,0.00018,2]
[389804819,1759854638430,-339.91243257,0.00018,5]
[389804820,1759854638441,-664.6806859,0.00018083,2]
[389804821,1759854638451,-1649.66123886,0.00018164,2]
[389804822,1759854638460,-500.0,0.00018173,2]
[389804823,1759854638475,-1000.0,0.00018173,2]
[389804824,1759854638496,-203.81341681,0.00018173,2]
[389804825,1759854638506,-500.0,0.00018173,2]
[389804826,1759854638515,-1000.0,0.00018173,2]
[389804827,1759854638525,-1000.0,0.00018173,2]
[389804828,1759854638535,-1000.0,0.00018173,2]
[389804829,1759854638545,-501.98365039,0.00018173,2]
[389804830,1759854638554,-151.0,0.000183,2]
[389804831,1759854638575,-1000.0,0.00018356,2]
[389804832,1759854638594,-354.12,0.00018445,3]
[389804833,1759854638604,-403.74,0.00018445,3]
[389804834,1759854638614,-521.42,0.00018445,3]
[389804835,1759854638625,-525.68477425,0.00018447,2]
[389804836,1759854638635,-151.0,0.000185,2]
[389804837,1759854638645,-12531.98298489,0.000185,2]
[389804838,1759854638654,-720.07074305,0.00018583,2]
[389804839,1759854638665,-256.5340351,0.000186,2]
[389804840,1759854638674,-330.49586247,0.000186,2]
[389804841,1759854638684,-1000.0,0.0001863,2]
[389804842,1759854638694,-1292.0,0.00018656,2]